bitfinex-derivatives/quotes_ETHF0:USTF0_20260316
["timestamp","ask_amount","ask_price","bid_price","bid_amount"]
[1773680031088,5.3393554,2295.4,2294.3,5.41927874]
[1773680032589,5.21612634,2295.7,2294.3,5.41927874]
[1773680033188,5.21612634,2295.7,2294.4,0.21791]
[1773680033391,5.21612634,2295.7,2294.5,5.39368182]
[1773680033895,5.21612634,2295.7,2294.7,5.29112676]
[1773680034791,0.00307725,2295.9,2294.9,5.29112676]
[1773680037092,0.00307725,2295.9,2295.1,5.29112676]
[1773680037396,0.00307725,2295.9,2295.3,5.29112676]
[1773680037895,5.42420521,2295.9,2295.3,5.29112676]
[1773680038896,5.42420521,2295.9,2294.7,5.29112676]
[1773680041801,5.42112796,2295.7,2294.7,5.29112676]
[1773680042701,5.42420521,2295.9,2294.9,5.29112676]
[1773680043293,5.64196521,2295.9,2294.9,5.29112676]
[1773680043604,5.64196521,2295.9,2294.4,5.29112676]
[1773680046302,5.64196521,2295.9,2294.6,5.29112676]
[1773680047294,5.42420521,2295.9,2294.8,5.29112676]
[1773680047701,5.42112796,2295.7,2294.8,5.29112676]
[1773680052308,0.00307725,2295.9,2294.8,5.29112676]
[1773680052609,5.42420521,2295.9,2295.0,5.29112676]
[1773680053004,5.42420521,2295.9,2294.4,0.2179]
[1773680053005,5.42420521,2295.9,2294.6,5.29112676]
[1773680053310,5.42112796,2295.8,2294.6,5.29112676]
[1773680056613,5.42112796,2295.6,2294.6,5.29112676]
[1773680057515,5.42112796,2295.8,2294.6,5.50900676]
[1773680063418,5.63890796,2295.8,2294.6,5.29112676]
[1773680064316,4.75793576,2295.6,2294.6,5.29112676]
[1773680064515,4.75793576,2295.4,2294.4,5.15837131]
[1773680064818,4.75793576,2295.2,2294.3,5.16110021]
[1773680065115,4.75793576,2295.2,2294.3,0.0027289]
[1773680065417,4.75793576,2295.0,2294.1,5.15837131]
[1773680066013,4.75793576,2295.0,2293.7,5.15837131]
[1773680066414,4.75793576,2295.0,2293.7,5.1619287]
[1773680068019,4.75793576,2295.0,2293.8,5.15837131]
[1773680075427,4.75793576,2294.8,2293.7,5.1619287]
[1773680076726,4.75793576,2294.7,2293.7,5.1619287]
[1773680078123,4.75793576,2294.9,2293.7,5.1619287]
[1773680079022,4.75793576,2295.3,2293.9,5.15837131]
[1773680079224,4.75793576,2295.1,2293.9,5.15837131]
[1773680079423,4.75793576,2295.5,2294.1,5.15837131]
[1773680079827,4.75793576,2295.5,2294.3,5.15837131]
[1773680082225,4.97574576,2295.5,2294.3,5.15837131]
[1773680083725,4.75793576,2295.3,2294.3,5.15837131]
[1773680083929,4.86893576,2295.1,2294.3,5.15837131]
[1773680085719,4.75793576,2295.1,2294.3,5.15837131]
[1773680090330,4.75793576,2294.9,2294.3,5.15837131]
[1773680090627,0.22125647,2295.4,2294.3,5.15837131]
[1773680090840,4.75793576,2295.7,2294.5,5.15837131]
[1773680091430,17.30901301,2295.9,2294.7,5.15837131]
[1773680091632,4.76101301,2295.9,2294.9,5.15837131]
[1773680095638,4.56068724,2295.7,2294.4,4.89091415]
[1773680101543,4.56068724,2295.7,2294.6,4.89091415]
[1773680102445,4.56068724,2295.7,2294.7,0.21788]
[1773680102744,4.56068724,2295.7,2294.8,4.89091415]
[1773680103448,4.56376449,2295.9,2294.8,4.89091415]
[1773680103945,0.00307725,2295.9,2294.8,4.89091415]
[1773680104341,4.56068724,2296.1,2295.0,4.89091415]
[1773680104542,4.56068724,2296.6,2295.4,4.89091415]
[1773680104746,4.56068724,2296.6,2295.6,4.89091415]
[1773680105348,4.56068724,2297.1,2295.8,4.89091415]
[1773680105542,4.56068724,2297.1,2296.0,4.89091415]
[1773680106446,0.00359337,2297.1,2296.2,4.89091415]
[1773680108842,4.56428061,2297.1,2296.2,4.89091415]
[1773680109352,4.56068724,2296.9,2295.8,4.89091415]
[1773680109651,0.00359337,2297.1,2295.8,4.89091415]
[1773680109652,4.56068724,2296.7,2295.8,4.89091415]
[1773680109948,4.56068724,2296.7,2295.6,4.89505779]
[1773680112345,0.21768,2296.8,2295.6,4.89505779]
[1773680112653,4.78587112,2297.1,2295.6,4.89505779]
[1773680113754,4.56428061,2297.1,2295.6,4.89505779]
[1773680114258,4.56428061,2297.1,2295.8,4.89091415]
[1773680114455,4.56428061,2297.1,2296.0,4.89091415]
[1773680116460,4.56428061,2297.1,2295.6,0.00414364]
[1773680116461,4.56068724,2296.9,2295.6,4.89505779]
[1773680117356,4.56068724,2296.7,2295.6,4.89505779]
[1773680119657,4.56068724,2296.5,2295.6,4.89505779]
[1773680120751,4.56068724,2296.5,2295.6,0.00414364]
[1773680121857,4.66993724,2296.5,2295.6,0.00414364]
[1773680122957,4.56068724,2296.5,2295.6,4.37677229]
[1773680123162,4.67033724,2296.5,2295.6,4.37677229]
[1773680123363,4.56068724,2296.5,2295.6,4.37677229]
[1773680124556,4.56068724,2296.5,2295.6,0.00331515]
[1773680124951,4.59920852,2296.3,2295.6,0.00331515]
[1773680125155,4.59947852,2296.3,2295.6,0.00331515]
[1773680125958,0.00359337,2297.1,2295.9,4.37262865]
[1773680126159,4.60616189,2297.1,2295.9,4.37262865]
[1773680128256,4.82381189,2297.1,2295.9,4.37262865]
[1773680130259,5.04554757,2297.1,2295.9,4.37262865]
[1773680131265,4.49016852,2296.5,2295.6,0.00331515]
[1773680131465,4.49016852,2296.5,2295.6,4.3759438]
[1773680131466,16.93416852,2296.5,2295.6,4.3759438]
[1773680131662,0.1124,2296.4,2295.6,4.3759438]
[1773680132159,4.60256852,2296.4,2295.6,4.3759438]
[1773680132565,4.60256852,2296.4,2295.6,0.00331515]
[1773680133966,4.49016852,2296.2,2294.8,4.37262865]
[1773680134365,4.49016852,2296.0,2294.8,4.37262865]
[1773680134967,4.49016852,2295.8,2294.8,4.37727564]
[1773680136164,4.60256852,2295.7,2294.8,4.37727564]
[1773680136964,0.1124,2295.6,2294.8,4.37727564]
[1773680137763,4.60256852,2295.6,2294.8,4.37727564]
[1773680139168,4.49016852,2296.1,2294.8,4.59513564]
[1773680142177,4.49016852,2296.1,2294.9,4.37262865]
[1773680144283,12.437,2296.5,2295.1,4.37262865]
[1773680144481,4.49016852,2296.4,2295.1,4.37262865]
[1773680145180,4.49016852,2296.4,2295.3,4.37262865]
[1773680147473,4.49016852,2296.6,2295.5,4.37262865]
[1773680147980,4.49016852,2296.6,2295.7,4.37262865]
[1773680150484,4.49016852,2296.6,2295.4,4.37262865]
[1773680155583,4.11880217,2296.1,2294.8,5.39609569]
[1773680155784,4.11880217,2295.8,2295.0,4.31313488]
[1773680155984,4.11880217,2296.3,2295.0,4.31313488]
[1773680156184,4.11880217,2296.1,2295.2,4.31313488]
[1773680156981,4.11880217,2296.0,2295.2,4.31313488]
[1773680157888,1.51328071,2295.8,2294.8,4.31778187]
[1773680159189,1.87528343,2295.4,2294.4,4.31313488]
[1773680159386,1.87528343,2295.2,2294.4,4.31313488]
[1773680160289,1.87901623,2295.2,2294.4,4.31429967]
[1773680162688,0.0037328,2295.2,2294.4,4.31429967]
[1773680162894,1.83798803,2295.6,2294.4,4.31429967]
[1773680163290,1.82819698,2295.8,2294.6,4.31313488]
[1773680163491,12.351,2296.1,2294.8,4.31313488]
[1773680163796,1.82819698,2296.0,2294.8,4.31313488]
[1773680164794,1.8250733,2295.8,2294.8,4.31313488]
[1773680167001,1.78874107,2295.7,2294.4,0.00116479]
[1773680167195,1.78874107,2295.2,2294.4,0.00116479]
[1773680167902,1.77461212,2295.0,2294.4,0.00116479]
[1773680168104,1.77461212,2295.0,2294.1,4.31313488]
[1773680169196,1.77461212,2295.0,2294.1,4.31686768]
[1773680170602,1.70357843,2295.2,2294.1,4.31686768]
[1773680170907,1.70357843,2295.0,2294.1,4.31686768]
[1773680171705,1.70357843,2295.0,2294.1,0.0037328]
[1773680172303,1.67277552,2294.8,2294.1,0.0037328]
[1773680173609,1.68587331,2295.2,2294.1,4.31686768]
[1773680173906,1.68587331,2295.0,2294.1,4.31686768]
[1773680174204,1.68343475,2295.4,2294.1,4.31686768]
[1773680178812,1.62408067,2295.2,2294.1,4.31686768]
[1773680181707,1.53765615,2295.0,2294.1,4.31686768]
[1773680182109,1.50889115,2294.8,2294.1,0.0037328]
[1773680182809,1.50889115,2294.8,2294.1,4.22723801]
[1773680184812,12.321,2295.2,2294.1,4.22723801]
[1773680185013,1.40402618,2295.1,2294.1,4.22723801]
[1773680189118,1.33213795,2294.9,2294.1,4.22723801]
[1773680195925,0.41198925,2296.7,2295.3,2.19866137]
[1773680196221,0.41198925,2296.7,2294.1,0.0037328]
[1773680196222,4.39259608,2299.2,2298.0,8.92028]
[1773680196524,4.39259608,2299.0,2298.1,5.1311458]
[1773680196719,4.39259608,2299.0,2298.2,5.1311458]
[1773680196919,4.39259608,2299.0,2297.2,7.106]
[1773680196920,4.39259608,2298.8,2297.6,3.56515563]
[1773680197223,4.13864482,2298.7,2298.2,0.00490645]
[1773680197416,4.13864482,2298.7,2298.3,6.85377098]
[1773680197617,4.13864482,2298.7,2297.8,6.67881067]
[1773680197819,4.13864482,2298.5,2297.8,6.67881067]
[1773680198017,4.13864482,2298.5,2297.7,4.22350521]
[1773680198220,11.07127274,2298.4,2297.7,4.22350521]
[1773680198726,4.13864482,2298.3,2297.3,4.22350521]
[1773680199121,4.13864482,2298.1,2297.3,4.22350521]
[1773680199825,4.13864482,2298.1,2296.5,0.2177]
[1773680199826,4.13864482,2297.9,2296.6,4.22350521]
[1773680200528,4.13864482,2297.7,2296.6,4.22350521]
[1773680200917,4.13864482,2297.5,2296.1,4.22350521]
[1773680201315,4.13864482,2297.3,2296.1,4.22350521]
[1773680201521,4.13864482,2297.1,2296.1,4.22350521]
[1773680202221,15.20991756,2297.0,2296.1,4.22350521]
[1773680202422,4.13864482,2297.0,2296.1,4.22350521]
[1773680203023,11.07127274,2296.9,2296.1,4.22350521]
[1773680203827,4.13864482,2296.8,2296.1,4.22350521]
[1773680204126,4.13864482,2296.8,2295.9,4.22350521]
[1773680204426,5.30887963,2300.8,2299.3,3.32156861]
[1773680204928,5.7103333,2300.6,2299.3,3.32156861]
[1773680205222,5.71483076,2300.6,2299.5,3.30302478]
[1773680205827,5.71483076,2300.6,2299.6,11.07127274]
[1773680206321,5.71483076,2300.6,2299.6,15.29477795]
[1773680206526,5.71483076,2300.6,2299.6,4.22350521]
[1773680206925,5.71483076,2300.6,2299.7,15.29477795]
[1773680207126,5.71483076,2300.6,2299.7,4.22350521]
[1773680207830,5.71483076,2300.6,2299.8,11.07127274]
[1773680208026,0.00449746,2300.6,2299.9,4.22350521]
[1773680208230,5.59768376,2301.3,2300.0,0.21738]
[1773680208627,5.59768376,2301.3,2300.1,11.07127274]
[1773680208826,8.12947263,2301.1,2300.1,11.07127274]
[1773680209223,8.13459071,2301.1,2299.1,12.20103363]
[1773680209423,8.13459071,2301.1,2299.1,0.21746]
[1773680209934,8.13459071,2301.1,2299.2,0.04855019]
[1773680210924,8.33666039,2300.9,2299.4,0.6360199]
[1773680211328,8.33666039,2300.7,2299.4,0.6360199]
[1773680211534,8.33666039,2300.7,2299.1,0.8534799]
[1773680211930,8.33666039,2300.7,2299.1,0.6360199]
[1773680212130,8.33666039,2300.7,2298.9,0.53692676]
[1773680212333,8.37266358,2300.1,2298.2,0.48138538]
[1773680212525,8.37266358,2299.9,2297.7,0.48138538]
[1773680212730,8.37266358,2299.9,2297.9,0.48138538]
[1773680213337,8.37266358,2299.9,2298.1,0.46730425]
[1773680214232,8.40853853,2299.7,2298.1,0.46730425]
[1773680217042,8.38706458,2299.3,2297.4,0.36525969]
[1773680217238,8.39037906,2299.3,2297.6,0.36525969]
[1773680217435,8.39037906,2299.3,2297.8,0.36525969]
[1773680217635,8.39037906,2299.3,2297.5,0.36525969]
[1773680217836,8.39037906,2299.3,2297.7,0.36525969]
[1773680218232,8.39037906,2299.3,2297.8,6.52087441]
[1773680218435,8.40274268,2299.1,2297.8,0.30689953]
[1773680218837,8.40274268,2299.1,2298.0,0.30689953]
[1773680219040,8.40274268,2299.1,2298.1,6.51847748]
[1773680219235,8.40274268,2299.1,2298.0,0.30689953]
[1773680219534,8.40274268,2299.1,2298.1,7.01237928]
[1773680219730,40.8,2299.0,2298.3,0.48634568]
[1773680220335,8.29494839,2298.9,2298.0,0.46853073]
[1773680220534,8.29494839,2298.9,2298.1,6.53243864]
[1773680220842,8.29494839,2298.9,2297.9,0.21757]
[1773680221043,8.29494839,2298.9,2298.0,6.53533146]
[1773680221339,8.29494839,2298.9,2298.1,6.53533146]
[1773680221540,8.29386179,2298.8,2297.8,3.50242363]
[1773680221741,8.29386179,2298.8,2297.9,6.54652448]
[1773680221935,8.29386179,2298.8,2298.0,6.54652448]
[1773680222141,8.29386179,2298.8,2298.1,6.54652448]
[1773680222341,49.09365748,2299.0,2298.2,6.96379793]
[1773680222634,8.29697196,2299.3,2298.5,0.63479345]
[1773680222834,8.29697196,2299.3,2298.6,6.54652448]
[1773680223029,8.29502819,2299.1,2298.7,6.55043026]
[1773680223236,8.29502819,2299.1,2298.4,3.50242363]
[1773680223434,8.29502819,2299.1,2298.5,6.56265672]
[1773680223635,8.29502819,2299.1,2298.6,6.56265672]
[1773680223839,8.29502819,2299.1,2298.7,6.56265672]
[1773680224034,8.29502819,2299.1,2298.8,6.56265672]
[1773680224231,8.29502819,2299.1,2298.5,3.50242363]
[1773680224232,8.29502819,2299.1,2298.9,6.5793472]
[1773680224436,8.29502819,2299.1,2298.7,3.50242363]
[1773680225337,8.29502819,2299.1,2298.6,4.97174324]
[1773680225536,12.672,2299.0,2298.3,6.60709884]
[1773680225740,7.94985227,2298.9,2298.3,6.60709884]
[1773680226039,7.94985227,2298.9,2298.0,6.60709884]
[1773680226235,7.94985227,2298.9,2297.6,4.035468]
[1773680226439,7.94985227,2298.9,2297.7,4.035468]
[1773680226740,40.8,2299.2,2297.7,4.035468]
[1773680226741,7.94985227,2298.7,2297.7,4.035468]
[1773680227642,7.94985227,2298.7,2297.6,4.60717537]
[1773680227840,7.94985227,2298.7,2297.7,4.60717537]
[1773680229141,7.94985227,2298.7,2297.8,5.39657052]
[1773680230244,7.94985227,2298.7,2297.8,0.21758]
[1773680230448,7.94985227,2298.7,2297.3,11.48706975]
[1773680230839,7.94985227,2298.5,2297.3,11.48706975]
[1773680231035,7.94985227,2298.5,2297.5,4.85425284]
[1773680231235,0.00331448,2299.3,2298.1,1.05105839]
[1773680231236,7.94985227,2299.1,2298.1,1.05105839]
[1773680231437,8.39250837,2299.6,2299.0,0.21746]
[1773680231640,7.67782285,2299.6,2298.5,8.59035275]
[1773680231835,12.668,2300.1,2298.5,0.21751]
[1773680231836,8.03516561,2299.4,2298.5,0.21751]
[1773680232435,8.03874701,2299.4,2298.5,0.22082448]
[1773680232840,8.03874701,2299.4,2298.5,0.00331448]
[1773680234643,8.58363077,2299.2,2298.5,0.00331448]
[1773680235044,8.58120823,2299.0,2298.5,0.00331448]
[1773680236444,8.58120823,2299.0,2298.6,5.79589874]
[1773680236647,8.58120823,2299.0,2298.7,1.4655362]
[1773680236846,8.58120823,2299.0,2298.5,0.00331448]
[1773680238146,8.58120823,2299.0,2298.5,6.61041332]
[1773680238347,1.73006083,2299.0,2298.5,0.00331448]
[1773680238946,1.73006083,2299.0,2298.5,7.95656338]
[1773680240148,1.73006083,2299.0,2298.5,0.00331448]
[1773680240753,1.73006083,2299.0,2297.9,6.60709884]
[1773680240960,1.73006083,2299.0,2297.8,7.9532489]
[1773680241158,7.94985227,2298.8,2297.9,7.9532489]
[1773680241358,7.94985227,2298.8,2298.0,7.9532489]
[1773680242762,7.94985227,2298.8,2297.8,8.41655983]
[1773680243357,7.94985227,2298.8,2297.9,8.41655983]
[1773680243561,7.94985227,2298.8,2297.7,15.02365867]
[1773680244054,7.94985227,2298.8,2297.8,8.41655983]
[1773680244253,7.94985227,2298.8,2297.7,6.60709884]
[1773680244461,7.94985227,2298.8,2297.5,22.34265867]
[1773680244653,8.90262087,2298.6,2297.5,8.41655983]
[1773680244857,8.90262087,2298.4,2297.5,8.41655983]
[1773680245260,8.90262087,2298.4,2297.4,15.02365867]
[1773680245661,8.90262087,2298.4,2297.4,8.41655983]
[1773680246954,8.90262087,2298.4,2297.1,8.41655983]
[1773680247964,8.90262087,2298.2,2297.1,8.41655983]
[1773680248565,8.90262087,2298.2,2297.2,5.15886921]
[1773680248762,0.21754,2298.3,2296.3,9.98358732]
[1773680248763,3.78117111,2297.7,2296.3,9.98358732]
[1773680248962,0.01372077,2297.2,2295.9,9.26521865]
[1773680249667,0.01599144,2297.0,2295.9,9.26521865]
[1773680249965,3.02091379,2296.9,2295.9,9.26521865]
[1773680250357,3.13342379,2296.9,2296.0,9.09998434]
[1773680250867,3.13342379,2296.9,2296.1,6.5296]
[1773680251063,3.02091379,2296.9,2296.1,6.5296]
[1773680251258,3.02091379,2296.9,2296.1,15.7332095]
[1773680251465,3.14210379,2296.9,2296.1,9.2036095]
[1773680251964,3.46900806,2297.2,2296.2,9.2036095]
[1773680252461,3.46900806,2297.2,2296.4,9.14910732]
[1773680252969,44.27007806,2297.1,2296.4,9.14910732]
[1773680253371,44.27007806,2297.1,2296.4,15.67870732]
[1773680253964,44.27007806,2297.1,2294.2,13.94713]
[1773680253965,0.33474,2296.4,2295.4,10.81651482]
[1773680254864,0.42317111,2296.2,2295.0,10.81983019]
[1773680255069,0.64924726,2296.1,2295.0,10.81983019]
[1773680255366,0.63701726,2295.7,2294.8,10.71290712]
[1773680255566,0.64262939,2295.7,2294.8,10.71290712]
[1773680255768,0.63701726,2295.5,2294.6,10.71290712]
[1773680255967,0.75773726,2295.5,2294.6,10.71290712]
[1773680257465,0.53778822,2295.3,2294.5,0.00387904]
[1773680257664,0.53778822,2295.1,2294.3,10.75145656]
[1773680257874,0.52256047,2294.9,2293.1,10.96948656]
[1773680258073,0.52256047,2294.9,2293.3,10.74943993]
[1773680258274,40.91118,2294.8,2293.3,10.74943993]
[1773680258474,40.91118,2294.8,2293.5,10.74943993]
[1773680258670,40.8,2294.8,2293.5,10.75038824]
[1773680259072,0.47296015,2294.7,2293.5,10.75038824]
[1773680261772,0.36120306,2294.3,2293.5,10.75038824]
[1773680262573,0.36120306,2294.3,2293.5,0.00094831]
[1773680263278,0.24470388,2294.2,2293.0,10.85053851]
[1773680263777,40.8,2294.1,2293.0,10.85053851]
[1773680263974,0.19427599,2294.0,2293.0,10.85053851]
[1773680264473,40.8,2294.1,2293.0,10.85414403]
[1773680265079,0.0775772,2294.0,2293.0,10.85414403]
[1773680265469,0.08159643,2294.0,2293.0,10.85414403]
[1773680267282,0.00401923,2294.0,2293.0,10.85414403]
[1773680269082,0.40643035,2294.0,2293.0,10.85414403]
[1773680269483,0.00401923,2294.0,2293.0,10.85414403]
[1773680270084,0.40643035,2294.0,2293.0,10.85414403]
[1773680270680,0.38449873,2293.8,2293.0,10.85414403]
[1773680272886,0.38927139,2293.7,2293.0,10.85414403]
[1773680273377,0.48119072,2293.9,2293.0,10.85414403]
[1773680273584,0.91514351,2293.9,2293.0,10.85414403]
[1773680273889,0.91514351,2293.9,2292.8,10.69640053]
[1773680273890,0.43395279,2293.7,2292.8,10.69640053]
[1773680274090,0.49710074,2293.6,2292.8,10.69640053]
[1773680274486,0.60706074,2293.6,2292.6,10.65536677]
[1773680274687,0.49710074,2293.6,2292.6,10.65536677]
[1773680274882,0.60682074,2293.6,2292.6,10.65536677]
[1773680275189,0.60760074,2293.6,2292.6,10.65704591]
[1773680276390,0.58768464,2293.4,2292.6,10.65704591]
[1773680277583,40.8,2293.5,2292.6,10.65704591]
[1773680277786,40.90955,2293.5,2292.6,10.65704591]
[1773680277990,41.23266967,2293.5,2292.6,10.65704591]
[1773680278585,40.8,2293.5,2292.6,10.65704591]
[1773680279384,0.58431328,2293.9,2292.8,10.49136621]
[1773680279592,13.1119125,2293.9,2293.0,10.49136621]
[1773680279792,12.899,2293.9,2293.0,10.49136621]
[1773680280092,12.90401923,2294.0,2293.0,10.49136621]
[1773680280493,37.8,2293.9,2293.0,10.49136621]
[1773680281093,37.8,2293.9,2293.2,10.49136621]
[1773680281293,5.05026897,2294.5,2293.2,10.49136621]
[1773680281687,37.8,2294.4,2293.2,10.49136621]
[1773680282095,37.8,2294.4,2293.4,10.49136621]
[1773680282296,37.80351984,2294.4,2293.4,10.49136621]
[1773680284198,6.02731107,2294.3,2293.4,10.49136621]
[1773680288802,6.02731107,2294.3,2293.5,7.362]
[1773680289002,6.02731107,2294.3,2293.6,10.49136621]
[1773680291204,10.86192414,2294.7,2293.6,10.49136621]
[1773680291801,11.11851029,2294.9,2293.6,10.49136621]
[1773680292202,10.86192414,2294.7,2293.6,10.49136621]
[1773680292403,10.86192414,2294.7,2293.8,10.49136621]
[1773680292999,10.86192414,2294.7,2293.4,10.49136621]
[1773680293201,10.86192414,2294.5,2293.4,10.49136621]
[1773680293409,10.86192414,2294.3,2293.4,10.49136621]
[1773680293814,23.81692414,2294.4,2293.6,10.49136621]
[1773680294614,10.86192414,2294.7,2293.6,10.49136621]
[1773680295122,5.44910995,2297.3,2296.1,8.92748]
[1773680295414,11.34699538,2298.6,2296.1,8.92748]
[1773680295415,11.2844043,2298.3,2297.0,0.00433174]
[1773680295611,11.2844043,2297.9,2297.0,7.372]
[1773680296013,11.28770249,2297.9,2297.1,4.93226081]
[1773680296214,11.28770249,2297.9,2297.0,7.37588648]
[1773680296710,13.15425346,2297.8,2297.1,4.91259867]
[1773680296910,13.15425346,2297.8,2297.2,5.10953525]
[1773680297110,13.15425346,2297.8,2297.0,7.37588648]
[1773680297111,13.15972196,2297.7,2297.0,7.37588648]
[1773680297516,1.86210008,2297.6,2297.0,7.37588648]
[1773680297717,13.15972196,2297.6,2297.0,7.37588648]
[1773680298019,13.15972196,2297.6,2296.7,7.411]
[1773680298215,13.15972196,2297.6,2296.8,6.88664579]
[1773680298420,13.15972196,2297.6,2296.8,1.80044353]
[1773680299118,13.15972196,2297.6,2296.8,1.80480584]
[1773680301621,13.15972196,2297.6,2296.8,0.00436231]
[1773680302323,0.00329819,2297.9,2297.0,0.21766]
[1773680302324,12.44941723,2297.9,2297.0,0.21766]
[1773680302518,12.44941723,2297.9,2296.8,7.55460403]
[1773680304118,12.3645565,2297.8,2296.8,7.55460403]
[1773680304718,12.3645565,2297.8,2296.8,7.46236231]
[1773680304924,12.3645565,2297.7,2296.8,7.46236231]
[1773680306617,12.3645565,2297.7,2296.8,0.00436231]
[1773680306819,12.3645565,2297.7,2296.5,0.42262905]
[1773680307924,12.3645565,2297.7,2296.5,0.42638797]
[1773680308324,12.3645565,2297.7,2296.7,0.53142457]
[1773680309129,12.28941402,2298.8,2298.0,0.21756]
[1773680309720,12.28941402,2298.7,2297.8,7.487]
[1773680309921,12.28941402,2298.7,2297.6,8.05078339]
[1773680310229,12.29400132,2298.7,2297.7,0.54970598]
[1773680312422,12.29400132,2298.7,2297.4,0.21761]
[1773680312618,12.29400132,2298.7,2297.4,1.0395054]
[1773680313426,12.22392766,2298.5,2297.4,1.0395054]
[1773680313626,12.22392766,2298.5,2297.5,0.8526526]
[1773680315528,12.22392766,2298.5,2296.8,3.5311719]
[1773680315529,12.22392766,2298.5,2296.9,0.83068347]
[1773680316227,0.21748,2298.9,2296.9,0.83068347]
[1773680316228,12.2231058,2300.3,2298.8,1.02906864]
[1773680316428,12.2231058,2300.1,2298.8,1.02906864]
[1773680316624,12.2231058,2299.9,2298.9,0.81157864]
[1773680317226,12.22810425,2299.9,2298.9,0.81483768]
[1773680320232,12.23908741,2299.8,2298.9,0.00325904]
[1773680322239,12.22756089,2299.6,2298.9,0.00325904]
[1773680323035,12.22756089,2299.6,2298.3,4.24124268]
[1773680323237,12.22756089,2299.6,2298.4,8.91347411]
[1773680323438,12.22756089,2299.6,2298.5,5.38230221]
[1773680323738,12.22756089,2299.6,2298.6,5.38230221]
[1773680323942,12.22756089,2299.6,2298.7,5.38230221]
[1773680324142,12.22756089,2299.6,2298.8,5.38230221]
[1773680324436,12.22756089,2299.6,2298.9,5.38230221]
[1773680324630,12.22756089,2299.6,2299.0,5.39884572]
[1773680324828,12.22756089,2299.6,2298.6,0.0048707]
[1773680325039,12.22756089,2299.6,2298.7,5.39872533]
[1773680325239,12.22756089,2299.6,2298.8,5.39872533]
[1773680325438,12.22756089,2299.6,2298.9,5.39872533]
[1773680325640,12.22843694,2299.4,2299.0,0.37221155]
[1773680325831,25.63143694,2299.4,2298.6,5.69033174]
[1773680326031,11.67029309,2299.3,2298.6,5.69033174]
[1773680326235,11.67029309,2299.3,2298.7,9.20051556]
[1773680327941,11.67029309,2299.3,2298.7,5.66934366]
[1773680328840,11.67029309,2299.3,2298.6,9.47903015]
[1773680330139,11.67029309,2299.3,2298.7,3.5311719]
[1773680330344,11.67029309,2299.3,2298.6,0.0048707]
[1773680331745,25.11529309,2299.3,2298.6,0.0048707]
[1773680331941,12.19106106,2299.2,2298.6,0.0048707]
[1773680334547,25.65406106,2299.2,2298.6,0.0048707]
[1773680335044,12.52615872,2299.1,2298.6,0.0048707]
[1773680337545,12.52615872,2299.1,2298.7,5.09078435]
[1773680337747,12.52615872,2299.1,2298.6,0.0048707]
[1773680338047,12.52615872,2299.1,2298.7,5.09079843]
[1773680338247,12.52615872,2299.1,2298.8,5.09079843]
[1773680338548,12.52615872,2299.1,2298.6,0.0048707]
[1773680338844,12.52615872,2299.1,2298.7,5.09697865]
[1773680339044,12.52615872,2299.1,2298.8,5.09697865]
[1773680339248,12.52615872,2299.1,2298.6,0.0048707]
[1773680339449,12.52615872,2299.1,2298.7,5.0982481]
[1773680339648,12.52615872,2299.1,2298.3,3.56034479]
[1773680339841,12.52615872,2298.9,2298.0,15.48820823]
[1773680340046,12.52615872,2298.8,2298.0,10.13603176]
[1773680340246,12.52615872,2298.6,2298.0,10.13603176]
[1773680340650,12.52615872,2298.6,2298.1,13.69303205]
[1773680340852,12.52615872,2298.6,2298.0,0.00491092]
[1773680341552,12.52615872,2298.6,2298.0,3.56525571]
[1773680341948,12.52615872,2298.6,2298.0,0.00491092]
[1773680343249,12.52615872,2298.6,2297.6,10.94924987]
[1773680343448,12.52615872,2298.6,2297.7,10.94924987]
[1773680343956,12.52615872,2298.6,2297.8,3.56034479]
[1773680344157,12.52615872,2298.6,2297.6,10.9987138]
[1773680344455,12.76628909,2298.4,2297.2,10.9987138]
[1773680344650,12.76628909,2298.2,2297.2,10.9987138]
[1773680344852,12.77106478,2298.2,2297.2,10.9987138]
[1773680345057,12.77106478,2298.2,2297.3,3.56034479]
[1773680345360,12.77106478,2298.2,2297.4,11.01356933]
[1773680345659,12.77106478,2298.2,2297.7,11.01356933]
[1773680346052,12.77106478,2298.2,2297.7,14.57391412]
[1773680347050,12.77106478,2298.2,2297.7,3.56034479]
[1773680347955,12.77106478,2298.2,2297.8,3.56034479]
[1773680348159,12.77106478,2298.2,2297.5,10.95393934]
[1773680348361,12.77106478,2298.2,2297.6,3.56034479]
[1773680348659,12.77106478,2298.2,2297.6,10.69038236]
[1773680348857,12.77106478,2298.2,2297.8,10.69038236]
[1773680349060,12.77106478,2298.2,2297.4,10.66276831]
[1773680349458,12.77106478,2298.2,2297.7,3.56034479]
[1773680349662,12.77106478,2298.2,2297.5,10.66276831]
[1773680349863,12.77106478,2298.2,2297.7,3.56034479]
[1773680350364,12.77106478,2298.2,2297.8,3.56034479]
[1773680350564,12.77106478,2298.2,2297.6,10.62242402]
[1773680351067,12.77106478,2298.2,2297.7,3.56034479]
[1773680351365,12.77106478,2298.2,2297.7,14.06279942]
[1773680351564,12.77106478,2298.2,2297.8,3.56034479]
[1773680351766,12.77106478,2298.2,2297.7,10.50245463]
[1773680351957,12.77106478,2298.2,2297.7,14.06279942]
[1773680352768,12.77106478,2298.2,2297.7,3.56034479]
[1773680352969,12.77106478,2298.2,2297.8,3.56034479]
[1773680353269,12.77106478,2298.2,2297.6,10.44161173]
[1773680353457,0.00477569,2298.2,2297.8,10.44161173]
[1773680353657,12.02150704,2298.2,2297.8,10.44161173]
[1773680353858,12.02150704,2298.2,2297.9,3.56034479]
[1773680354166,12.01673135,2298.4,2297.7,0.21759]
[1773680354463,12.01673135,2298.4,2297.6,10.4154525]
[1773680354864,12.01673135,2298.4,2297.7,3.56034479]
[1773680355172,12.02040249,2298.4,2297.7,0.00491876]
[1773680355362,12.02040249,2298.4,2297.8,3.56034479]
[1773680355563,12.02040249,2298.4,2297.7,0.00491876]
[1773680355760,12.02040249,2298.4,2297.2,17.95656998]
[1773680355965,12.02040249,2298.4,2297.2,12.60439351]
[1773680356769,12.01673135,2298.2,2297.1,7.497]
[1773680357074,12.01673135,2298.0,2297.0,5.35217647]
[1773680357369,12.01673135,2298.0,2296.9,17.73893998]
[1773680357571,12.01673135,2298.0,2297.1,12.38676351]
[1773680358163,12.01673135,2298.0,2297.2,12.38676351]
[1773680364181,12.01673135,2298.0,2297.2,17.73893998]
[1773680366373,12.01673135,2298.0,2297.3,12.19460623]
[1773680368577,12.01673135,2298.0,2297.2,5.35217647]
[1773680369983,12.01673135,2298.0,2296.8,6.68042768]
[1773680370186,12.01673135,2298.0,2296.8,18.87503391]
[1773680370374,30.4,2297.9,2296.8,18.87503391]
[1773680370578,12.56347676,2297.8,2296.8,12.19460623]
[1773680370778,12.56347676,2297.6,2296.8,12.19460623]
[1773680371182,12.56347676,2297.6,2296.9,7.562]
[1773680371578,12.56347676,2297.5,2296.9,7.562]
[1773680373281,30.4,2297.9,2296.9,7.562]
[1773680373282,12.56347676,2297.8,2297.0,12.19460623]
[1773680373882,12.56347676,2297.7,2297.0,12.19460623]